[Event "*** Titled Tuesday Blitz"]
[Site "Chess.com"]
[Date "2019.05.07"]
[Round "6"]
[White "giantslayer83"]
[Black "WPWPWP-2015"]
[Result "1-0"]
[WhiteElo "2537"]
[BlackElo "2380"]
[TimeControl "180+2"]
[EndTime "14:30:17 PDT"]
[Termination "giantslayer83 won by resignation"]

1. d4 {[%clk 0:03:01.9]} 1... d5 {[%clk 0:02:59]} 2. c4 {[%clk 0:03:01.4]} 2...
c6 {[%clk 0:03:00]} 3. Nf3 {[%clk 0:03:01.9]} 3... Nf6 {[%clk 0:03:01]} 4. e3
{[%clk 0:03:02.3]} 4... Bf5 {[%clk 0:03:01.1]} 5. Nc3 {[%clk 0:03:02.4]} 5... e6
{[%clk 0:03:01.5]} 6. Nh4 {[%clk 0:03:03.8]} 6... Bg6 {[%clk 0:03:02.5]} 7. Qb3
{[%clk 0:03:04.1]} 7... Qc7 {[%clk 0:03:01.1]} 8. Nxg6 {[%clk 0:03:02.5]} 8...
hxg6 {[%clk 0:03:01.4]} 9. Bd2 {[%clk 0:03:01.9]} 9... Nbd7 {[%clk 0:03:00.7]}
10. g3 {[%clk 0:02:59.2]} 10... Bd6 {[%clk 0:02:59.5]} 11. Bg2 {[%clk
0:02:59.5]} 11... O-O {[%clk 0:02:58.7]} 12. O-O {[%clk 0:02:59.7]} 12... dxc4
{[%clk 0:02:55.3]} 13. Qxc4 {[%clk 0:03:00.4]} 13... e5 {[%clk 0:02:56.5]} 14.
dxe5 {[%clk 0:02:57.9]} 14... Nxe5 {[%clk 0:02:56.8]} 15. Qe2 {[%clk 0:02:59.4]}
15... Rad8 {[%clk 0:02:54.7]} 16. Rac1 {[%clk 0:02:59.5]} 16... Qb6 {[%clk
0:02:51.2]} 17. Na4 {[%clk 0:02:57.3]} 17... Qc7 {[%clk 0:02:51]} 18. f4 {[%clk
0:02:48.3]} 18... Ned7 {[%clk 0:02:50.6]} 19. e4 {[%clk 0:02:48.5]} 19... Rfe8
{[%clk 0:02:43.1]} 20. Kh1 {[%clk 0:02:41.7]} 20... Nxe4 {[%clk 0:02:03.9]} 21.
Bxe4 {[%clk 0:02:36.8]} 21... Nf6 {[%clk 0:02:04.8]} 22. Nc3 {[%clk 0:02:35.4]}
22... Bb4 {[%clk 0:02:05.2]} 23. Nb5 {[%clk 0:02:35.2]} 23... Rxd2 {[%clk
0:01:13.5]} 24. Qxd2 {[%clk 0:02:21.4]} 24... Bxd2 {[%clk 0:01:12.7]} 25. Nxc7
{[%clk 0:02:22.3]} 25... Rxe4 {[%clk 0:01:01]} 26. Rcd1 {[%clk 0:02:21]} 26...
Re2 {[%clk 0:00:48.9]} 27. Rf3 {[%clk 0:01:29.5]} 27... Ng4 {[%clk 0:00:45.9]}
28. Kg1 {[%clk 0:01:30.2]} 28... Ba5 {[%clk 0:00:16.6]} 29. Na8 {[%clk
0:01:19.3]} 29... Re8 {[%clk 0:00:15.5]} 30. Rd7 {[%clk 0:01:16.9]} 30... Rxa8
{[%clk 0:00:15.3]} 31. Rxb7 {[%clk 0:01:17.9]} 31... Bb6+ {[%clk 0:00:16.5]} 32.
Kg2 {[%clk 0:01:17.9]} 32... Re8 {[%clk 0:00:16.9]} 33. Rd3 {[%clk 0:01:15]}
33... Ne3+ {[%clk 0:00:16.7]} 34. Kf3 {[%clk 0:01:15.4]} 34... Nd5 {[%clk
0:00:14]} 35. h4 {[%clk 0:01:15.7]} 35... Kf8 {[%clk 0:00:13.1]} 36. a3 {[%clk
0:01:14.4]} 36... Kg8 {[%clk 0:00:13.5]} 37. b4 {[%clk 0:01:15]} 37... f5 {[%clk
0:00:10.8]} 38. b5 {[%clk 0:01:15.9]} 38... Nf6 {[%clk 0:00:10.1]} 39. bxc6
{[%clk 0:01:17]} 39... Rc8 {[%clk 0:00:10.8]} 40. Rc3 {[%clk 0:01:14.1]} 40...
Ne8 {[%clk 0:00:10.9]} 41. a4 {[%clk 0:01:12.1]} 41... Nc7 {[%clk 0:00:11.4]}
42. Rc4 {[%clk 0:01:10.2]} 42... Kf8 {[%clk 0:00:11.5]} 43. Rc2 {[%clk
0:01:08.2]} 43... Ke7 {[%clk 0:00:12.3]} 44. Rd2 {[%clk 0:01:09.2]} 44... Ke6
{[%clk 0:00:11.8]} 45. Rd7 {[%clk 0:01:09.4]} 45... Nd5 {[%clk 0:00:12.3]} 46.
Rxg7 {[%clk 0:01:09.5]} 46... Rxc6 {[%clk 0:00:12.7]} 47. Rxg6+ {[%clk
0:01:10.7]} 47... Nf6 {[%clk 0:00:13.8]} 48. h5 {[%clk 0:01:08.5]} 48... Rc2
{[%clk 0:00:14.2]} 49. g4 {[%clk 0:00:34.3]} 49... fxg4+ {[%clk 0:00:15.1]} 50.
Kg3 {[%clk 0:00:35.4]} 50... Bf2+ {[%clk 0:00:13.5]} 51. Kg2 {[%clk 0:00:35.8]}
51... Bd4+ {[%clk 0:00:13.6]} 52. Kg3 {[%clk 0:00:34.9]} 52... Bf2+ {[%clk
0:00:13.3]} 53. Kg2 {[%clk 0:00:35.4]} 53... Bc5+ {[%clk 0:00:10.4]} 54. Kg3
{[%clk 0:00:30.4]} 54... Rc3+ {[%clk 0:00:11.1]} 55. Kg2 {[%clk 0:00:26.6]}
55... Rh3 {[%clk 0:00:10.5]} 56. h6 {[%clk 0:00:21.2]} 56... Kf5 {[%clk
0:00:11.2]} 57. Rg5+ {[%clk 0:00:22.4]} 57... Kxf4 {[%clk 0:00:10.5]} 58. Rxc5
{[%clk 0:00:23.4]} 58... Rxh6 {[%clk 0:00:09.9]} 59. Rf7 {[%clk 0:00:13.3]}
59... g3 {[%clk 0:00:06.8]} 60. Rc6 {[%clk 0:00:10.4]} 60... Rh2+ {[%clk
0:00:06.7]} 61. Kg1 {[%clk 0:00:09.8]} 61... Ra2 {[%clk 0:00:07.3]} 62. Rfxf6+
{[%clk 0:00:09.7]} 62... Kg4 {[%clk 0:00:08.2]} 63. Rg6+ {[%clk 0:00:08.5]}
63... Kf4 {[%clk 0:00:09.3]} 64. Rcf6+ {[%clk 0:00:07.4]} 64... Ke5 {[%clk
0:00:10.4]} 65. Rf3 {[%clk 0:00:07.6]} 65... Rxa4 {[%clk 0:00:09.8]} 66. Rgxg3
{[%clk 0:00:08.6]} 66... Rh4 {[%clk 0:00:10.4]} 67. Kg2 {[%clk 0:00:09.6]} 67...
Kd6 {[%clk 0:00:08.2]} 68. Ra3 {[%clk 0:00:10.4]} 68... Rh7 {[%clk 0:00:08.1]}
69. Ra6+ {[%clk 0:00:11.3]} 69... Kc5 {[%clk 0:00:08.7]} 70. Rga3 {[%clk
0:00:13.2]} 70... Rg7+ {[%clk 0:00:08.1]} 71. Kf2 {[%clk 0:00:13.1]} 71... Rf7+
{[%clk 0:00:08.5]} 72. Ke2 {[%clk 0:00:14.4]} 72... Kb4 {[%clk 0:00:07.1]} 73.
R6a4+ {[%clk 0:00:14.5]} 73... Kb5 {[%clk 0:00:07.4]} 74. Rxa7 {[%clk
0:00:16.4]} 74... Rf8 {[%clk 0:00:08.5]} 75. Rc7 {[%clk 0:00:15.4]} 75... Re8+
{[%clk 0:00:07.3]} 76. Kd2 {[%clk 0:00:15.3]} 76... Rd8+ {[%clk 0:00:07.1]} 77.
Rd3 {[%clk 0:00:15.7]} 77... Rh8 {[%clk 0:00:06.6]} 78. Rb3+ {[%clk 0:00:16.5]}
78... Ka4 {[%clk 0:00:07]} 79. Rb1 {[%clk 0:00:16.9]} 79... Rh2+ {[%clk
0:00:07.7]} 80. Ke3 {[%clk 0:00:18]} 80... Rh3+ {[%clk 0:00:08.4]} 81. Kf4
{[%clk 0:00:19.1]} 81... Rh4+ {[%clk 0:00:06.6]} 82. Kg3 {[%clk 0:00:20]} 82...
Rb4 {[%clk 0:00:05.1]} 83. Ra7+ {[%clk 0:00:20.5]} 1-0

[Event "*** Titled Tuesday Blitz"]
[Site "Chess.com"]
[Date "2019.05.07"]
[Round "6"]
[White "r31415"]
[Black "elefante33"]
[Result "0-1"]
[WhiteElo "2366"]
[BlackElo "2557"]
[TimeControl "180+2"]
[EndTime "14:30:41 PDT"]
[Termination "elefante33 won by resignation"]

1. e4 {[%clk 0:03:01.9]} 1... e5 {[%clk 0:02:59]} 2. Nf3 {[%clk 0:03:02.7]} 2...
Nc6 {[%clk 0:02:56.9]} 3. Bc4 {[%clk 0:03:04.1]} 3... Bc5 {[%clk 0:02:53.9]} 4.
c3 {[%clk 0:03:05.5]} 4... Nf6 {[%clk 0:02:51.5]} 5. d3 {[%clk 0:03:06.9]} 5...
a6 {[%clk 0:02:46.1]} 6. Bb3 {[%clk 0:03:08]} 6... d6 {[%clk 0:02:38.6]} 7. O-O
{[%clk 0:03:09.4]} 7... h6 {[%clk 0:02:29.7]} 8. Re1 {[%clk 0:03:09.8]} 8... O-O
{[%clk 0:02:24.7]} 9. Nbd2 {[%clk 0:03:10.9]} 9... Be6 {[%clk 0:02:19.8]} 10.
Nf1 {[%clk 0:03:11.4]} 10... Bxb3 {[%clk 0:02:11.4]} 11. Qxb3 {[%clk 0:03:11.7]}
11... Qd7 {[%clk 0:02:09.4]} 12. a4 {[%clk 0:02:55.4]} 12... Rfe8 {[%clk
0:02:00.5]} 13. h3 {[%clk 0:02:55.4]} 13... d5 {[%clk 0:01:55.1]} 14. Ng3 {[%clk
0:02:29.3]} 14... Bb6 {[%clk 0:01:48.1]} 15. Qc2 {[%clk 0:02:10.7]} 15... Rad8
{[%clk 0:01:45.7]} 16. Nh4 {[%clk 0:01:54.6]} 16... dxe4 {[%clk 0:01:36.3]} 17.
dxe4 {[%clk 0:01:55.2]} 17... Na5 {[%clk 0:01:27.2]} 18. Be3 {[%clk 0:01:18.3]}
18... Bxe3 {[%clk 0:01:20.6]} 19. Rxe3 {[%clk 0:01:20.2]} 19... Qd2 {[%clk
0:01:21.2]} 20. Re2 {[%clk 0:00:34]} 20... Qxc2 {[%clk 0:01:15.1]} 21. Rxc2
{[%clk 0:00:34.7]} 21... Nb3 {[%clk 0:01:14.8]} 22. Re1 {[%clk 0:00:32.3]} 22...
g6 {[%clk 0:01:00.2]} 23. Nf3 {[%clk 0:00:31.4]} 23... Kg7 {[%clk 0:00:53.6]}
24. Rce2 {[%clk 0:00:30.4]} 24... Rd3 {[%clk 0:00:48.9]} 25. Re3 {[%clk
0:00:26.2]} 25... Rxe3 {[%clk 0:00:46.2]} 26. Rxe3 {[%clk 0:00:27.2]} 26... Nd7
{[%clk 0:00:45.5]} 27. Rd3 {[%clk 0:00:09.9]} 27... Ndc5 {[%clk 0:00:42.4]} 28.
Rd5 {[%clk 0:00:10.2]} 28... Kf6 {[%clk 0:00:33]} 29. a5 {[%clk 0:00:07]} 29...
Re6 {[%clk 0:00:33.7]} 30. Nf1 {[%clk 0:00:02.9]} 30... c6 {[%clk 0:00:34.7]}
31. Rd8 {[%clk 0:00:03.7]} 31... Nxa5 {[%clk 0:00:35.2]} 32. N3d2 {[%clk
0:00:03.3]} 32... Nab3 {[%clk 0:00:35.1]} 33. Nc4 {[%clk 0:00:03.7]} 33... b5
{[%clk 0:00:33.8]} 34. Nd6 {[%clk 0:00:03.6]} 34... Ke7 {[%clk 0:00:33.5]} 35.
Nb7 {[%clk 0:00:03.4]} 35... Nxb7 {[%clk 0:00:32.2]} 36. Rb8 {[%clk 0:00:04.8]}
36... N7c5 {[%clk 0:00:32.6]} 37. Rb6 {[%clk 0:00:06.4]} 37... a5 {[%clk
0:00:33.4]} 38. Ne3 {[%clk 0:00:06.7]} 38... a4 {[%clk 0:00:34.8]} 39. Nc2
{[%clk 0:00:06.8]} 39... Nxe4 {[%clk 0:00:35.3]} 40. Nb4 {[%clk 0:00:08]} 40...
c5 {[%clk 0:00:34.9]} 41. Rb7+ {[%clk 0:00:08.5]} 41... Kf6 {[%clk 0:00:35.6]}
42. Nd5+ {[%clk 0:00:09.7]} 42... Kg7 {[%clk 0:00:36.5]} 43. Rxb5 {[%clk
0:00:11.1]} 43... Rd6 {[%clk 0:00:35.9]} 44. Ne3 {[%clk 0:00:10.1]} 44... Ned2
{[%clk 0:00:35.3]} 45. Kh2 {[%clk 0:00:07.5]} 45... Ne4 {[%clk 0:00:35.3]} 46.
Kg1 {[%clk 0:00:07.2]} 46... Rd2 {[%clk 0:00:35.7]} 47. Nc4 {[%clk 0:00:06.3]}
47... Rxf2 {[%clk 0:00:34.5]} 48. Nxe5 {[%clk 0:00:08.2]} 48... Rxb2 {[%clk
0:00:34.8]} 49. Rb7 {[%clk 0:00:09]} 49... Rb1+ {[%clk 0:00:34.1]} 50. Kh2
{[%clk 0:00:09.6]} 50... Nd6 {[%clk 0:00:35.5]} 51. Rd7 {[%clk 0:00:10]} 51...
Rd1 {[%clk 0:00:33.1]} 52. Ra7 {[%clk 0:00:03.6]} 52... Rd5 {[%clk 0:00:31.1]}
53. Nc6 {[%clk 0:00:03.1]} 53... Nb5 {[%clk 0:00:31]} 54. Rxa4 {[%clk 0:00:04]}
54... Nxc3 {[%clk 0:00:31.9]} 55. Ra3 {[%clk 0:00:04.7]} 55... c4 {[%clk
0:00:32.8]} 56. Ra7 {[%clk 0:00:05.3]} 56... Rd2 {[%clk 0:00:32.4]} 57. Ne5
{[%clk 0:00:05.2]} 57... Rf2 {[%clk 0:00:30]} 58. Nxc4 {[%clk 0:00:06.1]} 58...
Nd4 {[%clk 0:00:29.6]} 59. Ne5 {[%clk 0:00:05.2]} 59... Ne6 {[%clk 0:00:29.5]}
60. Ra3 {[%clk 0:00:04]} 60... Nd5 {[%clk 0:00:30.2]} 61. Nf3 {[%clk 0:00:04.5]}
61... Ndf4 {[%clk 0:00:30.5]} 62. Ne1 {[%clk 0:00:04.4]} 62... Re2 {[%clk
0:00:30.7]} 63. Ra1 {[%clk 0:00:04.3]} 63... Nxg2 {[%clk 0:00:30.6]} 64. Nxg2
{[%clk 0:00:04.4]} 64... Nf4 {[%clk 0:00:32.1]} 65. Rf1 {[%clk 0:00:04.6]} 65...
Nxg2 {[%clk 0:00:32.1]} 66. Kg3 {[%clk 0:00:04.2]} 66... Ne3 {[%clk 0:00:33]}
67. Ra1 {[%clk 0:00:05.4]} 67... Nf5+ {[%clk 0:00:33.5]} 68. Kf4 {[%clk
0:00:06]} 68... Rf2+ {[%clk 0:00:32.2]} 69. Ke4 {[%clk 0:00:05.9]} 69... Rh2
{[%clk 0:00:32.1]} 70. Ra3 {[%clk 0:00:06.6]} 70... h5 {[%clk 0:00:29.4]} 71.
Kf4 {[%clk 0:00:07.3]} 71... f6 {[%clk 0:00:27.5]} 72. Ke4 {[%clk 0:00:07.5]}
72... Kh6 {[%clk 0:00:28.2]} 73. Kf4 {[%clk 0:00:08.3]} 73... Rf2+ {[%clk
0:00:25]} 74. Ke4 {[%clk 0:00:09.2]} 74... Nd6+ {[%clk 0:00:23]} 75. Kd5 {[%clk
0:00:10.1]} 75... Rd2+ {[%clk 0:00:23.7]} 76. Ke6 {[%clk 0:00:11]} 76... Kg5
{[%clk 0:00:23.1]} 77. Ra5+ {[%clk 0:00:10.3]} 77... f5 {[%clk 0:00:22.9]} 78.
Ra4 {[%clk 0:00:08.5]} 78... Ne4 {[%clk 0:00:23.4]} 79. Kf7 {[%clk 0:00:08.1]}
79... Rd6 {[%clk 0:00:23.7]} 80. Ra3 {[%clk 0:00:04.4]} 80... Kh4 {[%clk
0:00:24]} 81. Re3 {[%clk 0:00:06]} 81... Ng3 {[%clk 0:00:23.3]} 82. Ra3 {[%clk
0:00:04.5]} 82... Kxh3 {[%clk 0:00:24.1]} 83. Ra4 {[%clk 0:00:06]} 83... g5
{[%clk 0:00:23]} 84. Kg8 {[%clk 0:00:07.2]} 84... f4 {[%clk 0:00:24.4]} 85. Kf7
{[%clk 0:00:06.6]} 85... f3 {[%clk 0:00:24.5]} 86. Ke7 {[%clk 0:00:08.5]} 86...
Rb6 {[%clk 0:00:23.3]} 87. Ra2 {[%clk 0:00:09]} 87... g4 {[%clk 0:00:23.3]} 88.
Kf7 {[%clk 0:00:10.7]} 88... Ne4 {[%clk 0:00:23.9]} 89. Kg7 {[%clk 0:00:12.6]}
89... f2 {[%clk 0:00:24.2]} 90. Ra3+ {[%clk 0:00:14]} 90... Kg2 {[%clk
0:00:24.8]} 91. Ra6 {[%clk 0:00:14.7]} 91... Rxa6 {[%clk 0:00:24]} 0-1

[Event "*** Titled Tuesday Blitz"]
[Site "Chess.com"]
[Date "2019.05.07"]
[Round "6"]
[White "MFguimaraes"]
[Black "riconaipe"]
[Result "1/2-1/2"]
[WhiteElo "2312"]
[BlackElo "2432"]
[TimeControl "180+2"]
[EndTime "14:32:02 PDT"]
[Termination "Game drawn - insufficient material"]

1. e4 {[%clk 0:03:01.9]} 1... g6 {[%clk 0:02:57.9]} 2. d4 {[%clk 0:03:02.3]}
2... Bg7 {[%clk 0:02:59.1]} 3. Nc3 {[%clk 0:03:03.5]} 3... c6 {[%clk 0:02:58]}
4. f4 {[%clk 0:03:04.4]} 4... d5 {[%clk 0:02:59.1]} 5. e5 {[%clk 0:03:05.9]}
5... Nh6 {[%clk 0:03:00]} 6. Nf3 {[%clk 0:03:03.7]} 6... O-O {[%clk 0:03:01.4]}
7. Be3 {[%clk 0:03:04.2]} 7... Bg4 {[%clk 0:03:01.4]} 8. h3 {[%clk 0:03:04.7]}
8... Bxf3 {[%clk 0:03:02.5]} 9. Qxf3 {[%clk 0:03:06.6]} 9... f6 {[%clk
0:03:03.8]} 10. exf6 {[%clk 0:03:04.6]} 10... exf6 {[%clk 0:03:04.4]} 11. O-O-O
{[%clk 0:03:05.4]} 11... Nd7 {[%clk 0:03:05.1]} 12. g4 {[%clk 0:03:05.7]} 12...
b5 {[%clk 0:03:01.7]} 13. Bd3 {[%clk 0:03:05.9]} 13... Nb6 {[%clk 0:03:00.3]}
14. Kb1 {[%clk 0:03:06.3]} 14... a5 {[%clk 0:03:00.9]} 15. f5 {[%clk 0:03:03.5]}
15... Qe8 {[%clk 0:02:49.3]} 16. Rde1 {[%clk 0:03:01.7]} 16... Qf7 {[%clk
0:02:49.7]} 17. h4 {[%clk 0:02:58.6]} 17... b4 {[%clk 0:02:34.2]} 18. Ne2 {[%clk
0:02:57.9]} 18... Rfe8 {[%clk 0:02:32.4]} 19. fxg6 {[%clk 0:02:50.4]} 19... hxg6
{[%clk 0:02:32.6]} 20. Nf4 {[%clk 0:02:49.4]} 20... f5 {[%clk 0:02:32.6]} 21.
gxf5 {[%clk 0:02:46]} 21... Nxf5 {[%clk 0:02:33.7]} 22. Nxg6 {[%clk 0:02:45.9]}
22... Nxe3 {[%clk 0:02:28.3]} 23. Rxe3 {[%clk 0:02:46]} 23... Rxe3 {[%clk
0:02:13.8]} 24. Qxe3 {[%clk 0:02:45.8]} 24... Nc4 {[%clk 0:02:14.5]} 25. Qg1
{[%clk 0:02:42]} 25... Nd2+ {[%clk 0:02:08.7]} 26. Ka1 {[%clk 0:02:40.7]} 26...
Nf3 {[%clk 0:02:04.2]} 27. Qg4 {[%clk 0:02:39.8]} 27... a4 {[%clk 0:01:48.3]}
28. Rf1 {[%clk 0:02:38.1]} 28... Re8 {[%clk 0:01:42.3]} 29. a3 {[%clk
0:02:31.7]} 29... Nh2 {[%clk 0:01:38.4]} 30. Rxf7 {[%clk 0:02:29.9]} 30... Nxg4
{[%clk 0:01:37]} 31. Rf4 {[%clk 0:02:29.8]} 31... b3 {[%clk 0:01:23.7]} 32. cxb3
{[%clk 0:02:23.2]} 32... Re1+ {[%clk 0:01:17]} 33. Ka2 {[%clk 0:02:23.8]} 33...
Ne3 {[%clk 0:01:10.6]} 34. bxa4 {[%clk 0:02:10.9]} 34... Rd1 {[%clk 0:01:09.5]}
35. Ne7+ {[%clk 0:02:05.3]} 35... Kh8 {[%clk 0:01:00.3]} 36. Bg6 {[%clk
0:01:59.4]} 36... Nc4 {[%clk 0:00:58.7]} 37. Nf5 {[%clk 0:01:32.6]} 37... Rd2
{[%clk 0:00:51.5]} 38. h5 {[%clk 0:01:15.3]} 38... Rxb2+ {[%clk 0:00:46.9]} 39.
Ka1 {[%clk 0:01:15.8]} 39... Rh2 {[%clk 0:00:46.6]} 40. Nxg7 {[%clk 0:01:10]}
40... Kxg7 {[%clk 0:00:47.2]} 41. Rf7+ {[%clk 0:01:05.4]} 41... Kh6 {[%clk
0:00:48.2]} 42. Rf3 {[%clk 0:00:52.9]} 42... Nd2 {[%clk 0:00:41.4]} 43. Rc3
{[%clk 0:00:47.6]} 43... Nc4 {[%clk 0:00:36.5]} 44. Bd3 {[%clk 0:00:35.7]} 44...
Rh1+ {[%clk 0:00:35.2]} 45. Ka2 {[%clk 0:00:32.6]} 45... Rh2+ {[%clk 0:00:23.3]}
46. Kb1 {[%clk 0:00:33.2]} 46... Rh1+ {[%clk 0:00:20.1]} 47. Kc2 {[%clk
0:00:30.3]} 47... Rh2+ {[%clk 0:00:21.4]} 48. Kc1 {[%clk 0:00:29.2]} 48... Rh1+
{[%clk 0:00:21.7]} 49. Kc2 {[%clk 0:00:30.5]} 49... Rh2+ {[%clk 0:00:23.4]} 50.
Kd1 {[%clk 0:00:30.6]} 50... Rh1+ {[%clk 0:00:23.6]} 51. Ke2 {[%clk 0:00:31.2]}
51... Rh2+ {[%clk 0:00:25]} 52. Kf3 {[%clk 0:00:30.2]} 52... Rh3+ {[%clk
0:00:26.6]} 53. Kg4 {[%clk 0:00:30.6]} 53... Re3 {[%clk 0:00:26.1]} 54. a5
{[%clk 0:00:29.1]} 54... Nxa5 {[%clk 0:00:26.1]} 55. Kf4 {[%clk 0:00:29.9]}
55... Rh3 {[%clk 0:00:22.3]} 56. Rc5 {[%clk 0:00:25.3]} 56... Rxd3 {[%clk
0:00:23.2]} 57. Rxa5 {[%clk 0:00:24.7]} 57... Rxd4+ {[%clk 0:00:24.6]} 58. Ke5
{[%clk 0:00:26.1]} 58... Rc4 {[%clk 0:00:22.6]} 59. Ra8 {[%clk 0:00:22.2]} 59...
Kxh5 {[%clk 0:00:23.8]} 60. a4 {[%clk 0:00:22.6]} 60... Kg4 {[%clk 0:00:18.3]}
61. a5 {[%clk 0:00:23.4]} 61... Kf3 {[%clk 0:00:19.5]} 62. a6 {[%clk 0:00:24.4]}
62... Ke3 {[%clk 0:00:20.9]} 63. a7 {[%clk 0:00:25.3]} 63... Ra4 {[%clk
0:00:22.2]} 64. Kd6 {[%clk 0:00:26.4]} 64... Kd2 {[%clk 0:00:13.3]} 65. Kxc6
{[%clk 0:00:22.3]} 65... d4 {[%clk 0:00:14.7]} 66. Rd8 {[%clk 0:00:22.4]} 66...
d3 {[%clk 0:00:12.6]} 67. Kb7 {[%clk 0:00:20]} 67... Rb4+ {[%clk 0:00:12.3]} 68.
Ka6 {[%clk 0:00:20.1]} 68... Ke2 {[%clk 0:00:11.7]} 69. Ka5 {[%clk 0:00:19.5]}
69... Rb2 {[%clk 0:00:11.9]} 70. Rd4 {[%clk 0:00:19.4]} 70... Ra2+ {[%clk
0:00:10.6]} 71. Ra4 {[%clk 0:00:19.3]} 71... Rxa4+ {[%clk 0:00:11.9]} 72. Kxa4
{[%clk 0:00:19.5]} 72... d2 {[%clk 0:00:13.8]} 73. a8=Q {[%clk 0:00:20.6]} 73...
d1=Q+ {[%clk 0:00:15.4]} 74. Kb5 {[%clk 0:00:22]} 74... Qb3+ {[%clk 0:00:15.3]}
75. Ka6 {[%clk 0:00:23.2]} 75... Qa4+ {[%clk 0:00:14.1]} 76. Kb7 {[%clk
0:00:24.2]} 76... Qd7+ {[%clk 0:00:15.2]} 77. Kb8 {[%clk 0:00:24.9]} 77... Kd3
{[%clk 0:00:14.4]} 78. Qa3+ {[%clk 0:00:23.8]} 78... Kc4 {[%clk 0:00:15.3]} 79.
Qc1+ {[%clk 0:00:24]} 79... Kb5 {[%clk 0:00:15.7]} 80. Qf1+ {[%clk 0:00:23.8]}
80... Kb6 {[%clk 0:00:16.2]} 81. Qf2+ {[%clk 0:00:23.6]} 81... Kc6 {[%clk
0:00:17.4]} 82. Qf3+ {[%clk 0:00:23.9]} 82... Kc5 {[%clk 0:00:18.3]} 83. Qa3+
{[%clk 0:00:24.3]} 83... Kd5 {[%clk 0:00:19]} 84. Qd3+ {[%clk 0:00:24.8]} 84...
Ke6 {[%clk 0:00:20.2]} 85. Qg6+ {[%clk 0:00:25.1]} 85... Ke7 {[%clk 0:00:21]}
86. Qg7+ {[%clk 0:00:24.3]} 86... Kd6 {[%clk 0:00:22]} 87. Qd4+ {[%clk
0:00:24.6]} 87... Kc6 {[%clk 0:00:23.3]} 88. Qa4+ {[%clk 0:00:25.3]} 88... Kd6
{[%clk 0:00:24.6]} 89. Qd4+ {[%clk 0:00:26]} 89... Kc6 {[%clk 0:00:26]} 90. Qa4+
{[%clk 0:00:26.6]} 90... Kd6 {[%clk 0:00:27.6]} 91. Qd4+ {[%clk 0:00:27.5]}
91... Kc6 {[%clk 0:00:28.8]} 92. Qa4+ {[%clk 0:00:28.4]} 92... Kd6 {[%clk
0:00:30]} 93. Qf4+ {[%clk 0:00:29.2]} 93... Kc6 {[%clk 0:00:30.8]} 94. Qe4+
{[%clk 0:00:29.6]} 94... Kb6 {[%clk 0:00:31.3]} 95. Qe3+ {[%clk 0:00:29.6]}
95... Kc6 {[%clk 0:00:32.3]} 96. Qc3+ {[%clk 0:00:29.6]} 96... Kd5 {[%clk
0:00:32.4]} 97. Qd2+ {[%clk 0:00:30]} 97... Ke6 {[%clk 0:00:33.8]} 98. Qh6+
{[%clk 0:00:30.3]} 98... Kf7 {[%clk 0:00:34.7]} 99. Qh5+ {[%clk 0:00:30.8]}
99... Ke7 {[%clk 0:00:35.5]} 100. Qg5+ {[%clk 0:00:31.7]} 100... Kd6 {[%clk
0:00:36.7]} 101. Qf4+ {[%clk 0:00:32.6]} 101... Kc6 {[%clk 0:00:38]} 102. Qe4+
{[%clk 0:00:33.3]} 102... Qd5 {[%clk 0:00:38.5]} 103. Qe8+ {[%clk 0:00:33.6]}
103... Kb6 {[%clk 0:00:39.7]} 104. Qg6+ {[%clk 0:00:32.6]} 104... Ka5 {[%clk
0:00:39.1]} 105. Kc7 {[%clk 0:00:29]} 105... Kb5 {[%clk 0:00:38.4]} 106. Qf6
{[%clk 0:00:24.9]} 106... Qc5+ {[%clk 0:00:37.4]} 107. Kd7 {[%clk 0:00:25.1]}
107... Qa7+ {[%clk 0:00:37.9]} 108. Ke8 {[%clk 0:00:25.4]} 108... Qb8+ {[%clk
0:00:36]} 109. Kf7 {[%clk 0:00:25.9]} 109... Qc7+ {[%clk 0:00:36.7]} 110. Kf8
{[%clk 0:00:27]} 110... Kc5 {[%clk 0:00:37]} 111. Qc3+ {[%clk 0:00:25.6]} 111...
Kb6 {[%clk 0:00:38]} 112. Qxc7+ {[%clk 0:00:27.5]} 112... Kxc7 {[%clk
0:00:38.9]} 1/2-1/2

[Event "*** Titled Tuesday Blitz"]
[Site "Chess.com"]
[Date "2019.05.07"]
[Round "7"]
[White "pedromartinez91"]
[Black "PotapovaM"]
[Result "0-1"]
[WhiteElo "2503"]
[BlackElo "2466"]
[TimeControl "180+2"]
[EndTime "14:34:46 PDT"]
[Termination "PotapovaM won by resignation"]

1. e4 {[%clk 0:01:59.2]} 1... c5 {[%clk 0:02:59.2]} 2. Nf3 {[%clk 0:01:53.9]}
2... d6 {[%clk 0:03:00.1]} 3. Bb5+ {[%clk 0:01:54.5]} 3... Nd7 {[%clk
0:03:00.8]} 4. d4 {[%clk 0:01:54.9]} 4... cxd4 {[%clk 0:03:00.9]} 5. Qxd4 {[%clk
0:01:56.8]} 5... a6 {[%clk 0:03:02.3]} 6. Bxd7+ {[%clk 0:01:58]} 6... Bxd7
{[%clk 0:03:04.2]} 7. c4 {[%clk 0:01:59.8]} 7... e5 {[%clk 0:03:05.3]} 8. Qd3
{[%clk 0:02:00.8]} 8... b5 {[%clk 0:03:06.8]} 9. Nc3 {[%clk 0:02:01.3]} 9...
bxc4 {[%clk 0:03:07.9]} 10. Qxc4 {[%clk 0:02:03.2]} 10... Be6 {[%clk 0:03:09.2]}
11. Qa4+ {[%clk 0:02:01.4]} 11... Bd7 {[%clk 0:03:10.3]} 12. Qc4 {[%clk
0:02:02.4]} 12... Be6 {[%clk 0:03:11.4]} 13. Qa4+ {[%clk 0:02:03.7]} 13... Bd7
{[%clk 0:03:09.2]} 14. Qc4 {[%clk 0:02:04.7]} 14... Be6 {[%clk 0:03:04]} 15. Qd3
{[%clk 0:02:06]} 15... h6 {[%clk 0:02:59.4]} 16. Kf1 {[%clk 0:02:06.4]} 16...
Rc8 {[%clk 0:02:50.2]} 17. h3 {[%clk 0:02:07]} 17... Bc4 {[%clk 0:02:50.8]} 0-1

[Event "*** Titled Tuesday Blitz"]
[Site "Chess.com"]
[Date "2019.05.07"]
[Round "7"]
[White "Chebure"]
[Black "LarissaSteenbekkers"]
[Result "1-0"]
[WhiteElo "2603"]
[BlackElo "1967"]
[TimeControl "180+2"]
[EndTime "14:35:24 PDT"]
[Termination "Chebure won by resignation"]

1. d4 {[%clk 0:03:01.9]} 1... Nf6 {[%clk 0:02:44.6]} 2. Bf4 {[%clk 0:03:00.6]}
2... g6 {[%clk 0:02:42.4]} 3. e3 {[%clk 0:03:01.8]} 3... Bg7 {[%clk 0:02:43.1]}
4. Nf3 {[%clk 0:03:03.3]} 4... O-O {[%clk 0:02:43.1]} 5. h3 {[%clk 0:03:04.7]}
5... d6 {[%clk 0:02:43.9]} 6. Be2 {[%clk 0:03:05.7]} 6... c5 {[%clk 0:02:43.8]}
7. O-O {[%clk 0:03:06.6]} 7... Be6 {[%clk 0:02:43.1]} 8. c4 {[%clk 0:03:05]}
8... cxd4 {[%clk 0:02:40.6]} 9. exd4 {[%clk 0:03:06.9]} 9... d5 {[%clk
0:02:40.3]} 10. c5 {[%clk 0:03:04.3]} 10... Nc6 {[%clk 0:02:37.5]} 11. Nc3
{[%clk 0:03:03]} 11... Bf5 {[%clk 0:02:37.1]} 12. Qa4 {[%clk 0:02:58.6]} 12...
Ne4 {[%clk 0:02:35.4]} 13. Be3 {[%clk 0:02:52.6]} 13... Qd7 {[%clk 0:02:26.5]}
14. Rfd1 {[%clk 0:02:41.8]} 14... Nxc3 {[%clk 0:02:13.7]} 15. bxc3 {[%clk
0:02:40]} 15... Nxd4 {[%clk 0:02:12.7]} 16. Rxd4 {[%clk 0:02:37.8]} 16... Bxd4
{[%clk 0:02:07]} 17. Qxd4 {[%clk 0:02:37.2]} 17... Be4 {[%clk 0:02:06.7]} 18.
Bh6 {[%clk 0:02:36.1]} 18... e5 {[%clk 0:02:05]} 19. Nxe5 {[%clk 0:02:35.4]}
19... Qe6 {[%clk 0:02:04.3]} 20. Nd7 {[%clk 0:02:28.7]} 1-0